[Event "30th NATO Chess-ch 2019"]
[Site "Berlin"]
[Date "2019.09.19"]
[Round "5.14"]
[White "Nilsson, Erik"]
[Black "Lakos, Nikoletta"]
[Result "0-1"]
[ECO "B07"]
[WhiteElo "2022"]
[BlackElo "2226"]
[Annotator "ChessBase"]
[PlyCount "64"]
[EventDate "2019.09.16"]
[EventType "swiss"]
[EventCountry "GER"]
[SourceTitle "playchess.com"]
[Source "ChessBase"]
[SourceQuality "1"]
[TimeControl "40/7200:1800"]

1. d4 {[%emt 1:59:54]} d6 {[%emt 1:58:25]} 2. e4 {[%emt 1:59:24]} Nf6 {[%emt 1:58:17]} 3. Nc3 {[%emt 1:59:16]} Nbd7 {[%emt 1:53:00]} 4. g4 {[%emt 1:58:38]} h6 {[%emt 1:48:35]} 5. h3 {[%emt 1:56:21]} e5 {[%emt 1:56:21]} 6. Nge2 {[%emt 1:36:52]} c6 {[%emt 1:16:41]} 7. Bg2 {[%emt 1:55:55]} b5 {[%emt 1:15:16]} 8. a3 {[%emt 1:54:31]} a5 {[%emt 1:14:11]} 9. O-O {[%emt 1:51:18]} Rb8 {[%emt 1:51:18]} 10. Ng3 {[%emt 1:07:28]} g6 {[%emt 0:57:06]} 11. Be3 {[%emt 1:39:18]} Nb6 {[%emt 1:39:18]} 12. dxe5 {[%emt 1:38:08]} dxe5 {[%emt 0:40:27]} 13. Qxd8+ {[%emt 1:30:49]} Kxd8 {[%emt 1:30:49]} 14. f4 {[%emt 0:40:22]} Nc4 {[%emt 0:28:53]} 15. Rad1+ {[%emt 0:28:53]} Nd7 {[%emt 0:23:22]} 16. Bc1 {[%emt 1:29:06]} Bc5+ {[%emt 1:29:06]} 17. Kh1 {[%emt 0:22:26]} Ke7 {[%emt 0:18:34]} 18. Rf3 {[%emt 1:25:22]} exf4 {[%emt 1:25:22]} 19. Rxf4 {[%emt 1:24:34]} Be3 {[%emt 0:09:31]} 20. Bxe3 {[%emt 1:22:05]} Nxe3 {[%emt 0:09:27]} 21. Rd2 {[%emt 1:21:59]} Nc4 {[%emt 0:08:47]} 22. Rdf2 {[%emt 1:21:39]} Nde5 {[%emt 0:08:32]} 23. b4 {[%emt 0:08:32]} Nxa3 {[%emt 0:07:34]} 24. bxa5 {[%emt 1:16:13]} Ra8 {[%emt 0:06:55]} 25. Na2 {[%emt 1:13:08]} Rxa5 {[%emt 0:06:45]} 26. Nc1 {[%emt 0:06:45]} Be6 {[%emt 0:05:22]} 27. Nd3 {[%emt 0:05:22]} Nac4 {[%emt 0:05:11]} 28. Nc5 {[%emt 1:09:01]} Ra1+ {[%emt 0:04:50]} 29. Rf1 {[%emt 1:08:22]} Rxf1+ {[%emt 0:04:17]} 30. Rxf1 {[%emt 1:08:09]} Ne3 {[%emt 0:03:53]} 31. Ra1 {[%emt 1:07:39]} Nxc2 {[%emt 0:03:32]} 32. Ra7+ {[%emt 1:07:32]} Kf6 {[%emt 1:07:32]} 0-1

[Event "30th NATO Chess-ch 2019"]
[Site "Berlin"]
[Date "2019.09.19"]
[Round "5.15"]
[White "Pietruszewski, Marcin"]
[Black "Cheung, Jan"]
[Result "1-0"]
[ECO "B03"]
[WhiteElo "2215"]
[BlackElo "2015"]
[Annotator "ChessBase"]
[PlyCount "85"]
[EventDate "2019.09.16"]
[EventType "swiss"]
[EventCountry "GER"]
[SourceTitle "playchess.com"]
[Source "ChessBase"]
[SourceQuality "1"]
[TimeControl "40/7200:1800"]

1. e4 {[%emt 1:59:55]} Nf6 {[%emt 1:59:22]} 2. e5 {[%emt 1:59:48]} Nd5 {[%emt 1:59:48]} 3. d4 {[%emt 1:59:16]} d6 {[%emt 1:59:04]} 4. c4 {[%emt 1:59:04]} Nb6 {[%emt 1:58:55]} 5. exd6 {[%emt 1:59:31]} cxd6 {[%emt 1:58:30]} 6. Nc3 {[%emt 1:59:19]} g6 {[%emt 1:59:19]} 7. Be3 {[%emt 1:59:13]} Bg7 {[%emt 1:57:35]} 8. Rc1 {[%emt 1:59:07]} O-O {[%emt 1:56:57]} 9. b3 {[%emt 1:59:02]} e5 {[%emt 1:59:02]} 10. dxe5 {[%emt 1:56:20]} dxe5 {[%emt 1:51:50]} 11. Qxd8 {[%emt 1:56:10]} Rxd8 {[%emt 1:56:04]} 12. c5 {[%emt 1:56:04]} N6d7 {[%emt 1:55:54]} 13. Bc4 {[%emt 1:50:09]} Nc6 {[%emt 1:53:57]} 14. Nf3 {[%emt 1:53:57]} Na5 {[%emt 1:43:05]} 15. Be2 {[%emt 1:43:05]} Nf8 {[%emt 1:36:52]} 16. O-O {[%emt 1:27:29]} Be6 {[%emt 1:27:29]} 17. Nb5 {[%emt 1:20:50]} h6 {[%emt 1:20:50]} 18. h4 {[%emt 1:02:30]} f5 {[%emt 0:59:26]} 19. g3 {[%emt 0:59:26]} Kh7 {[%emt 1:02:24]} 20. Nd6 {[%emt 0:46:11]} b6 {[%emt 0:46:11]} 21. Rfd1 {[%emt 0:44:02]} bxc5 {[%emt 0:37:18]} 22. Rxc5 {[%emt 0:36:21]} Rxd6 23. Rxa5 Rxd1+ 24. Bxd1 {[%emt 0:36:19]} e4 {[%emt 0:22:48]} 25. Nd4 {[%emt 0:22:48]} g5 {[%emt 0:32:32]} 26. hxg5 {[%emt 0:29:03]} Rd8 {[%emt 0:29:03]} 27. Rxa7 {[%emt 0:25:55]} hxg5 {[%emt 0:16:29]} 28. Bc2 {[%emt 0:16:29]} Kg8 {[%emt 0:15:40]} 29. Nc6 {[%emt 0:14:28]} Rd6 {[%emt 0:14:28]} 30. Ne7+ {[%emt 0:12:00]} Kh8 {[%emt 0:10:28]} 31. Bxg5 {[%emt 0:13:36]} Bd4 {[%emt 0:09:01]} 32. Bf4 {[%emt 0:08:06]} Bxa7 {[%emt 0:06:47]} 33. Bxd6 {[%emt 0:08:04]} Kg7 {[%emt 0:05:49]} 34. Nc6 {[%emt 0:05:49]} Bb6 35. a4 {[%emt 0:05:36]} e3 {[%emt 0:07:12]} 36. fxe3 {[%emt 0:04:42]} Bxe3+ {[%emt 0:04:39]} 37. Kh2 {[%emt 0:06:53]} Nd7 38. Bf4 Bxf4 {[%emt 0:02:34]} 39. gxf4 {[%emt 0:06:51]} Kf6 {[%emt 0:01:06]} 40. a5 {[%emt 0:04:37]} Nc5 {[%emt 0:00:42]} 41. b4 {[%emt 0:04:21]} Bd5 {[%emt 0:29:22]} 42. Nd4 {[%emt 0:23:59]} Ne4 {[%emt 0:27:36]} 43. b5 {[%emt 0:23:56]} 1-0

[Event "30th NATO Chess-ch 2019"]
[Site "Berlin"]
[Date "2019.09.19"]
[Round "5.16"]
[White "Pirs, Matjaz"]
[Black "Sycz, Dariusz"]
[Result "0-1"]
[ECO "D02"]
[WhiteElo "2203"]
[BlackElo "2215"]
[Annotator "ChessBase"]
[PlyCount "118"]
[EventDate "2019.09.16"]
[EventType "swiss"]
[EventCountry "GER"]
[SourceTitle "playchess.com"]
[Source "ChessBase"]
[SourceQuality "1"]
[TimeControl "40/7200:1800"]

1. d4 {[%emt 1:59:16]} d5 {[%emt 1:59:47]} 2. Bf4 {[%emt 1:58:01]} Nf6 {[%emt 1:58:40]} 3. e3 {[%emt 1:57:00]} e6 {[%emt 1:56:02]} 4. Bd3 {[%emt 1:54:35]} b6 {[%emt 1:54:10]} 5. Nd2 {[%emt 1:54:10]} Bb7 {[%emt 1:53:36]} 6. Ngf3 {[%emt 1:53:36]} Be7 {[%emt 1:51:41]} 7. Ne5 {[%emt 1:45:58]} O-O {[%emt 1:45:58]} 8. O-O {[%emt 1:45:14]} Nbd7 {[%emt 1:44:39]} 9. Qe2 {[%emt 1:34:51]} c5 {[%emt 1:38:54]} 10. c3 {[%emt 1:38:54]} Nxe5 {[%emt 1:31:45]} 11. Bxe5 {[%emt 1:29:42]} Nd7 {[%emt 1:27:17]} 12. Bg3 {[%emt 1:27:17]} Bf6 {[%emt 1:26:48]} 13. Nf3 {[%emt 1:00:05]} Re8 {[%emt 1:00:05]} 14. Ne5 {[%emt 0:57:00]} g6 {[%emt 0:57:00]} 15. Bb5 {[%emt 0:49:33]} Bxe5 {[%emt 0:59:18]} 16. Bxe5 {[%emt 0:59:18]} h6 {[%emt 0:48:38]} 17. Bxd7 {[%emt 0:47:34]} Qxd7 {[%emt 0:48:43]} 18. Bf6 {[%emt 0:43:39]} Kh7 {[%emt 0:43:39]} 19. f4 {[%emt 0:42:23]} e5 {[%emt 0:38:38]} 20. fxe5 {[%emt 0:41:37]} Rg8 {[%emt 0:37:06]} 21. Rf3 {[%emt 0:37:06]} a5 {[%emt 0:33:37]} 22. Qf2 {[%emt 0:38:46]} Raf8 {[%emt 0:30:54]} 23. b3 {[%emt 0:25:37]} Ba6 {[%emt 0:25:37]} 24. Rd1 {[%emt 0:24:39]} c4 {[%emt 0:23:03]} 25. bxc4 {[%emt 0:21:50]} Bxc4 {[%emt 0:21:08]} 26. Rd2 {[%emt 0:21:08]} g5 {[%emt 0:18:11]} 27. Qe1 {[%emt 0:16:30]} Rg6 {[%emt 0:17:24]} 28. Qb1 {[%emt 0:16:07]} b5 {[%emt 0:13:42]} 29. Rdf2 {[%emt 0:13:42]} Kg8 {[%emt 0:12:35]} 30. Rg3 {[%emt 0:12:11]} Kh7 {[%emt 0:12:11]} 31. Qc2 {[%emt 0:09:54]} Rfg8 {[%emt 0:09:54]} 32. a3 {[%emt 0:07:41]} Qe8 {[%emt 0:07:00]} 33. Qf5 {[%emt 0:07:00]} Qe6 {[%emt 0:04:29]} 34. Qxe6 {[%emt 0:06:51]} fxe6 {[%emt 0:04:20]} 35. Be7 {[%emt 0:04:20]} g4 {[%emt 0:06:15]} 36. Rf7+ {[%emt 0:03:31]} R8g7 {[%emt 0:04:52]} 37. Rxg7+ {[%emt 0:03:08]} Kxg7 {[%emt 0:02:53]} 38. h3 {[%emt 0:03:22]} h5 {[%emt 0:02:46]} 39. hxg4 {[%emt 0:00:51]} hxg4 {[%emt 0:02:37]} 40. e4 {[%emt 0:00:33]} dxe4 {[%emt 0:00:33]} 41. Re3 {[%emt 6:08:22]} Bd3 {[%emt 0:30:28]} 42. Kf2 Kf7 {[%emt 0:24:14]} 43. Bd8 {[%emt 0:29:01]} a4 {[%emt 0:24:01]} 44. Kg3 {[%emt 0:27:58]} Ke8 {[%emt 0:23:54]} 45. Ba5 {[%emt 0:23:54]} Kd7 {[%emt 0:27:19]} 46. Kf4 {[%emt 0:15:45]} Kc6 {[%emt 0:20:03]} 47. Re1 {[%emt 0:13:55]} Kd5 {[%emt 0:18:29]} 48. g3 {[%emt 0:12:15]} Rg8 {[%emt 0:17:25]} 49. Bb4 {[%emt 0:11:29]} Rg7 {[%emt 0:16:42]} 50. Rh1 {[%emt 0:07:55]} Rf7+ {[%emt 0:07:55]} 51. Kxg4 {[%emt 0:05:00]} e3 {[%emt 0:05:00]} 52. c4+ {[%emt 0:03:59]} bxc4 {[%emt 0:13:25]} 53. Bc3 {[%emt 0:03:20]} Ke4 {[%emt 0:11:58]} 54. Rh6 {[%emt 0:03:12]} Be2+ {[%emt 0:09:54]} 55. Kg5 {[%emt 0:02:59]} Kd3 {[%emt 0:08:56]} 56. d5 {[%emt 0:08:56]} Rf5+ {[%emt 0:07:53]} 57. Kg6 {[%emt 0:01:40]} Kxc3 {[%emt 0:07:28]} 58. dxe6 {[%emt 0:01:20]} Rxe5 {[%emt 0:07:06]} 59. Kf6 {[%emt 0:01:19]} Re4 {[%emt 0:05:42]} 0-1

[Event "30th NATO Chess-ch 2019"]
[Site "Berlin"]
[Date "2019.09.19"]
[Round "5.17"]
[White "Tommasini, Enzo"]
[Black "Stankowski, Aleksander"]
[Result "1-0"]
[ECO "E62"]
[WhiteElo "2147"]
[BlackElo "2022"]
[Annotator "ChessBase"]
[PlyCount "75"]
[EventDate "2019.09.16"]
[EventType "swiss"]
[EventCountry "GER"]
[SourceTitle "playchess.com"]
[Source "ChessBase"]
[SourceQuality "1"]
[TimeControl "40/7200:1800"]

1. Nf3 {[%emt 1:59:08]} Nf6 {[%emt 1:59:08]} 2. c4 {[%emt 1:59:37]} g6 {[%emt 1:59:15]} 3. g3 {[%emt 1:59:15]} Bg7 {[%emt 1:59:09]} 4. Bg2 {[%emt 1:59:09]} O-O {[%emt 1:57:35]} 5. O-O {[%emt 1:57:27]} d6 {[%emt 1:58:56]} 6. d4 {[%emt 1:58:56]} Nc6 {[%emt 1:58:49]} 7. Nc3 {[%emt 1:58:49]} e5 {[%emt 1:58:36]} 8. d5 {[%emt 1:58:36]} Ne7 {[%emt 1:54:17]} 9. e4 {[%emt 1:58:18]} Nd7 {[%emt 1:56:04]} 10. Ne1 {[%emt 1:49:53]} f5 {[%emt 1:55:49]} 11. Nd3 {[%emt 1:55:49]} Nf6 {[%emt 1:52:25]} 12. f3 {[%emt 1:52:25]} Nh5 {[%emt 1:46:58]} 13. Be3 {[%emt 1:40:52]} f4 {[%emt 1:40:52]} 14. Bf2 {[%emt 1:47:28]} g5 {[%emt 1:45:27]} 15. g4 {[%emt 1:40:04]} Nf6 {[%emt 1:45:09]} 16. c5 {[%emt 1:45:09]} h5 {[%emt 1:37:40]} 17. h3 {[%emt 1:37:40]} hxg4 {[%emt 1:35:13]} 18. hxg4 {[%emt 1:38:11]} Bd7 {[%emt 1:32:42]} 19. Rc1 {[%emt 1:34:35]} Kf7 {[%emt 1:27:36]} 20. Qb3 {[%emt 1:30:58]} Bxg4 {[%emt 1:07:50]} 21. fxg4 {[%emt 1:24:34]} Qd7 {[%emt 1:24:34]} 22. cxd6 {[%emt 1:21:18]} cxd6 {[%emt 0:54:18]} 23. Nxe5+ {[%emt 0:54:18]} dxe5 {[%emt 0:53:26]} 24. d6+ {[%emt 1:20:23]} Kg6 {[%emt 0:51:01]} 25. dxe7 {[%emt 0:51:01]} Rh8 {[%emt 0:49:16]} 26. Nd5 {[%emt 1:03:11]} Qxg4 {[%emt 1:03:11]} 27. Qf3 {[%emt 0:44:36]} Qd7 {[%emt 1:01:44]} 28. Rfd1 {[%emt 0:59:18]} Nxd5 {[%emt 0:59:18]} 29. Rxd5 {[%emt 0:56:03]} Qxe7 {[%emt 0:29:04]} 30. Bh3 {[%emt 0:29:04]} Rhd8 {[%emt 0:27:53]} 31. Bf5+ {[%emt 0:55:00]} Kf6 {[%emt 0:27:15]} 32. Qh5 {[%emt 0:27:15]} Qf7 {[%emt 0:26:41]} 33. Qxf7+ {[%emt 0:26:41]} Kxf7 {[%emt 0:26:35]} 34. Rc7+ {[%emt 0:51:57]} Kf6 {[%emt 0:51:57]} 35. Bc5 {[%emt 0:26:11]} Rxd5 {[%emt 0:23:56]} 36. Be7+ {[%emt 0:23:56]} Kf7 {[%emt 0:23:49]} 37. Bxg5+ {[%emt 0:49:31]} Kf8 {[%emt 0:23:31]} 38. exd5 {[%emt 0:49:25]} 1-0

[Event "30th NATO Chess-ch 2019"]
[Site "Berlin"]
[Date "2019.09.19"]
[Round "5.18"]
[White "Keough, Robert"]
[Black "Almonti, Alessandro"]
[Result "1-0"]
[ECO "B07"]
[WhiteElo "2108"]
[BlackElo "1976"]
[Annotator "ChessBase"]
[PlyCount "73"]
[EventDate "2019.09.16"]
[EventType "swiss"]
[EventCountry "GER"]
[SourceTitle "playchess.com"]
[Source "ChessBase"]
[SourceQuality "1"]
[TimeControl "40/7200:1800"]

1. e4 {[%emt 2:00:00]} d6 {[%emt 1:59:21]} 2. d4 {[%emt 1:59:26]} Nf6 {[%emt 1:58:59]} 3. Nc3 {[%emt 1:59:20]} c6 {[%emt 1:58:11]} 4. Nf3 {[%emt 1:59:03]} Bg4 {[%emt 1:59:03]} 5. h3 {[%emt 1:58:19]} Bxf3 {[%emt 1:51:16]} 6. Qxf3 {[%emt 1:51:16]} Nbd7 {[%emt 1:58:08]} 7. Be3 {[%emt 1:46:31]} e5 {[%emt 1:46:31]} 8. O-O-O {[%emt 1:41:54]} Qa5 {[%emt 1:41:54]} 9. Bc4 {[%emt 1:38:12]} Be7 {[%emt 1:38:12]} 10. g4 {[%emt 1:19:03]} exd4 {[%emt 1:30:37]} 11. Bxd4 {[%emt 1:28:04]} Ne5 {[%emt 1:28:04]} 12. Bxe5 {[%emt 1:19:25]} Qxe5 {[%emt 1:12:11]} 13. h4 {[%emt 1:19:09]} O-O {[%emt 1:10:51]} 14. g5 {[%emt 1:16:16]} Nd7 {[%emt 1:10:12]} 15. Qe3 {[%emt 1:10:12]} b5 {[%emt 1:01:39]} 16. Bb3 {[%emt 1:01:39]} Nc5 {[%emt 1:15:34]} 17. f4 {[%emt 1:00:58]} Nxb3+ {[%emt 1:00:46]} 18. axb3 {[%emt 1:00:46]} Qe6 {[%emt 1:14:23]} 19. f5 {[%emt 1:05:04]} Qe5 {[%emt 0:58:33]} 20. Ne2 {[%emt 1:00:38]} d5 {[%emt 1:00:38]} 21. Qg3 {[%emt 0:51:06]} Qxg3 {[%emt 0:43:40]} 22. Nxg3 {[%emt 0:53:29]} dxe4 {[%emt 0:43:26]} 23. Nxe4 {[%emt 0:49:48]} Rfd8 {[%emt 0:49:48]} 24. f6 {[%emt 0:37:33]} Rxd1+ {[%emt 0:34:34]} 25. Rxd1 {[%emt 0:44:43]} gxf6 {[%emt 0:44:43]} 26. gxf6 {[%emt 0:35:05]} Bb4 {[%emt 0:35:05]} 27. c3 {[%emt 0:32:17]} Ba5 {[%emt 0:26:30]} 28. Rg1+ {[%emt 0:26:30]} Kf8 {[%emt 0:31:10]} 29. Rg7 {[%emt 0:19:36]} Re8 {[%emt 0:30:57]} 30. Rxh7 {[%emt 0:18:59]} Kg8 {[%emt 0:30:18]} 31. Rg7+ {[%emt 0:18:50]} Kf8 {[%emt 0:18:26]} 32. Ng5 {[%emt 0:18:26]} Re1+ {[%emt 0:17:09]} 33. Kd2 {[%emt 0:26:10]} Rf1 {[%emt 0:26:10]} 34. Rxf7+ {[%emt 0:25:41]} Kg8 {[%emt 0:14:16]} 35. Rg7+ {[%emt 0:25:24]} Kf8 {[%emt 0:13:28]} 36. Ne6+ {[%emt 0:25:18]} Ke8 {[%emt 0:13:12]} 37. Re7# {[%emt 0:25:12]} 1-0

[Event "30th NATO Chess-ch 2019"]
[Site "Berlin"]
[Date "2019.09.19"]
[Round "5.19"]
[White "Cichy, Kamil"]
[Black "Violini, Paolo"]
[Result "1-0"]
[ECO "C18"]
[WhiteElo "2106"]
[BlackElo "1963"]
[Annotator "ChessBase"]
[PlyCount "59"]
[EventDate "2019.09.16"]
[EventType "swiss"]
[EventCountry "GER"]
[SourceTitle "playchess.com"]
[Source "ChessBase"]
[SourceQuality "1"]
[TimeControl "40/7200:1800"]

1. e4 {[%emt 1:59:58]} e6 {[%emt 1:57:01]} 2. d4 {[%emt 1:59:43]} d5 {[%emt 1:56:54]} 3. Nc3 {[%emt 1:59:28]} Bb4 {[%emt 1:56:45]} 4. e5 {[%emt 1:58:56]} c5 {[%emt 1:58:56]} 5. a3 {[%emt 1:56:38]} Bxc3+ {[%emt 1:56:31]} 6. bxc3 {[%emt 1:58:26]} Ne7 {[%emt 1:56:26]} 7. Qg4 {[%emt 1:56:26]} cxd4 {[%emt 1:55:16]} 8. cxd4 {[%emt 1:25:02]} Qc7 {[%emt 1:25:02]} 9. Bd2 {[%emt 1:15:38]} Qxc2 {[%emt 1:54:05]} 10. Qxg7 {[%emt 1:09:05]} Rg8 {[%emt 1:09:05]} 11. Qh6 {[%emt 1:08:12]} Nbc6 {[%emt 1:08:12]} 12. Nf3 {[%emt 1:03:58]} Qe4+ {[%emt 1:41:11]} 13. Be3 {[%emt 1:00:03]} Qg6 {[%emt 1:00:03]} 14. Qxg6 {[%emt 0:56:57]} hxg6 {[%emt 1:33:49]} 15. g4 {[%emt 1:33:49]} Na5 {[%emt 1:30:33]} 16. Ng5 {[%emt 1:30:33]} Rh8 {[%emt 1:30:01]} 17. Bd3 {[%emt 0:41:08]} Kf8 {[%emt 0:41:08]} 18. Rc1 {[%emt 0:38:48]} Bd7 {[%emt 1:19:44]} 19. Rc7 {[%emt 0:32:52]} Bc6 {[%emt 0:32:52]} 20. Bd2 {[%emt 0:32:15]} Nb3 {[%emt 1:13:42]} 21. Bb4 {[%emt 1:13:42]} Re8 {[%emt 0:31:47]} 22. Nf3 {[%emt 0:29:30]} Rh3 {[%emt 0:29:30]} 23. Ke2 {[%emt 1:07:05]} Rxf3 {[%emt 1:06:59]} 24. Kxf3 {[%emt 0:27:29]} Nxd4+ {[%emt 1:06:53]} 25. Ke3 {[%emt 1:06:53]} Nc2+ {[%emt 1:03:21]} 26. Bxc2 {[%emt 0:20:59]} d4+ {[%emt 1:03:14]} 27. Ke2 {[%emt 0:20:14]} Bxh1 {[%emt 1:02:08]} 28. f3 {[%emt 0:20:03]} Kg7 {[%emt 1:01:40]} 29. Bxe7 {[%emt 0:19:17]} Rh8 {[%emt 0:19:17]} 30. Bf6+ {[%emt 0:19:12]} 1-0

[Event "30th NATO Chess-ch 2019"]
[Site "Berlin"]
[Date "2019.09.19"]
[Round "5.20"]
[White "Michalski, Daniel"]
[Black "Tocco, Paolo"]
[Result "0-1"]
[ECO "B00"]
[WhiteElo "2024"]
[BlackElo "2089"]
[Annotator "NA"]
[PlyCount "64"]
[EventDate "2019.09.16"]
[EventType "swiss"]
[EventCountry "GER"]
[SourceTitle "playchess.com"]
[Source "ChessBase"]
[SourceQuality "1"]
[TimeControl "40/7200:1800"]

1. d4 {[%emt 2:00:00]} e6 {[%emt 1:59:32]} 2. Nf3 {[%emt 1:59:32]} b6 {[%emt 1:59:20]} 3. e4 {[%emt 1:56:39]} Bb7 {[%emt 1:59:14]} 4. Bd3 {[%emt 1:56:28]} c5 {[%emt 1:59:02]} 5. c3 {[%emt 1:59:02]} Nf6 {[%emt 1:57:30]} 6. Qe2 {[%emt 1:55:46]} Be7 {[%emt 1:55:46]} 7. O-O {[%emt 1:54:33]} Nc6 {[%emt 1:49:35]} 8. Nbd2 {[%emt 1:45:14]} cxd4 {[%emt 1:45:14]} 9. Nxd4 {[%emt 1:43:37]} O-O {[%emt 1:45:57]} 10. Re1 {[%emt 1:36:04]} d6 {[%emt 1:36:04]} 11. Nf1 {[%emt 1:27:42]} Rc8 {[%emt 1:23:18]} 12. Bd2 {[%emt 1:23:18]} Ne5 {[%emt 1:16:27]} 13. Bc2 $11 {[%emt 1:15:40]} Nc4 {[%emt 1:13:16]} 14. Bc1 {[%emt 1:15:08]} Qc7 {[%emt 1:03:01]} 15. b3 {[%emt 1:08:24]} Ne5 {[%emt 1:00:52]} 16. Bb2 {[%emt 1:07:46]} Ng6 {[%emt 1:07:46]} 17. c4 {[%emt 0:53:57]} Rfe8 {[%emt 0:50:40]} 18. Rad1 {[%emt 0:42:15]} a6 {[%emt 0:42:15]} 19. Bb1 {[%emt 0:36:19]} d5 {[%emt 0:36:19]} 20. cxd5 {[%emt 0:33:31]} exd5 {[%emt 0:37:08]} 21. Rc1 {[%emt 0:30:38]} Qd7 {[%emt 0:34:18]} 22. e5 {[%emt 0:23:29]} Bb4 {[%emt 0:27:08]} 23. Bf5 {[%emt 0:21:44]} Rxc1 {[%emt 0:27:01]} 24. Rxc1 {[%emt 0:27:01]} Qe7 {[%emt 0:22:05]} 25. exf6 {[%emt 0:05:51]} Qxe2 26. Nxe2 {[%emt 0:21:55]} Rxe2 {[%emt 0:05:45]} 27. Bd4 {[%emt 0:05:30]} gxf6 {[%emt 0:05:30]} 28. Rc7 {[%emt 0:05:14]} Re7 {[%emt 0:19:02]} 29. Bxb6 {[%emt 0:04:33]} Nf4 {[%emt 0:04:33]} 30. Rxe7 {[%emt 0:16:21]} Bxe7 {[%emt 0:16:19]} 31. Bd3 {[%emt 0:03:36]} Nxd3 {[%emt 0:15:59]} 32. Z0 d4 0-1

[Event "30th NATO Chess-ch 2019"]
[Site "Berlin"]
[Date "2019.09.19"]
[Round "5.21"]
[White "Mestek, Igor"]
[Black "Wagenaar, Harm Theo"]
[Result "1/2-1/2"]
[ECO "B01"]
[WhiteElo "2087"]
[BlackElo "1879"]
[Annotator "NA"]
[PlyCount "50"]
[EventDate "2019.09.16"]
[EventType "swiss"]
[EventCountry "GER"]
[SourceTitle "playchess.com"]
[Source "ChessBase"]
[SourceQuality "1"]
[TimeControl "40/7200:1800"]

1. e4 {[%emt 1:58:41]} d5 {[%emt 1:59:30]} 2. exd5 {[%emt 1:57:18]} Qxd5 {[%emt 1:57:18]} 3. Nc3 {[%emt 1:59:06]} Qd8 {[%emt 1:58:19]} 4. Nf3 {[%emt 1:58:19]} Nf6 {[%emt 1:57:46]} 5. Bc4 {[%emt 1:57:46]} a6 {[%emt 1:54:06]} 6. a4 {[%emt 1:45:26] B01: Scandinavian Defence} Nc6 {[%emt 1:45:26]} 7. h3 {[%emt 1:43:37]} Bf5 {[%emt 1:52:30]} 8. d3 {[%emt 1:52:30]} e6 {[%emt 1:42:24]} (8... h6 9. g4 Bg6 10. Bf4 e6 11. Ne5 Nxe5 12. Bxe5 Bd6 13. Qe2 Bxe5 14. Qxe5 {1-0 (44) Kamsky,G (2677)-Bartholomew,J (2477) Reykjavik 2018}) 9. Bf4 $146 {[%emt 1:35:51]} ({Predecessor:} 9. O-O h6 10. Bf4 Bd6 11. Qd2 Bxf4 12. Qxf4 Qd6 {½-½ (130) Smirnov,A (2527)-Bartholomew,J (2459) chess.com INT 2018}) 9... Bd6 {[%emt 1:46:17]} 10. Qd2 {[%emt 1:46:17]} Bxf4 {[%emt 1:35:03]} 11. Qxf4 {[%emt 1:43:52]} Qd6 {[%emt 1:34:55]} 12. Qe3 {[%emt 1:31:37]} h6 {[%emt 1:40:46]} 13. O-O {[%emt 1:29:13]} O-O {[%emt 1:22:59]} 14. Ne4 {[%emt 1:26:38]} Bxe4 {[%emt 1:26:38]} 15. dxe4 {[%emt 1:26:23]} Ne5 {[%emt 1:26:23]} 16. Nxe5 {[%emt 1:23:42]} Qxe5 {[%emt 1:23:42] Double Attack} 17. Bd3 {[%emt 1:16:21]} Rfd8 {[%emt 1:23:34]} 18. b3 {[%emt 1:14:59]} Qd4 {[%emt 1:06:07]} 19. Qe2 {[%emt 1:10:36]} Nd7 $11 {[%emt 1:10:36]} 20. Rad1 {[%emt 0:56:13]} Qc3 {[%emt 0:53:18]} 21. f4 {[%emt 0:53:18]} Nc5 {[%emt 1:03:36]} 22. f5 {[%emt 0:50:10]} Nxd3 {[%emt 0:50:10]} 23. Rxd3 {[%emt 0:41:38]} Rxd3 {[%emt 0:40:40]} 24. Qxd3 {[%emt 0:40:40]} Qxd3 {[%emt 0:38:39]} 25. cxd3 {[%emt 0:48:11]} exf5 {[%emt 0:35:24]} 1/2-1/2

[Event "30th NATO Chess-ch 2019"]
[Site "Berlin"]
[Date "2019.09.19"]
[Round "5.22"]
[White "Oblak, Nicholas"]
[Black "Crapulli, Giuseppe"]
[Result "1/2-1/2"]
[ECO "B90"]
[WhiteElo "2048"]
[BlackElo "1836"]
[Annotator "NA"]
[PlyCount "36"]
[EventDate "2019.09.16"]
[EventType "swiss"]
[EventCountry "GER"]
[SourceTitle "playchess.com"]
[Source "ChessBase"]
[SourceQuality "1"]
[TimeControl "40/7200:1800"]

1. e4 {[%emt 2:00:00]} c5 {[%emt 1:53:20]} 2. Nf3 {[%emt 1:58:57]} d6 {[%emt 1:53:13]} 3. d4 {[%emt 1:57:52]} cxd4 {[%emt 1:53:04]} 4. Nxd4 {[%emt 1:53:04]} Nf6 {[%emt 1:53:00]} 5. Nc3 {[%emt 1:57:39]} a6 {[%emt 1:52:57]} 6. f3 {[%emt 1:55:04]} e5 {[%emt 1:55:04]} 7. Nb3 {[%emt 1:54:27]} Be6 {[%emt 1:52:33]} 8. Be3 {[%emt 1:53:35]} h5 {[%emt 1:50:38]} 9. Nd5 {[%emt 1:50:38]} Bxd5 {[%emt 1:49:47]} 10. exd5 {[%emt 1:50:44]} Nbd7 {[%emt 1:50:44]} 11. c4 {[%emt 1:41:54]} g6 {[%emt 1:48:32]} 12. Bd3 {[%emt 1:40:25]} b6 {[%emt 1:47:28]} 13. O-O {[%emt 1:36:46]} Bg7 {[%emt 1:46:58]} 14. Qe1 {[%emt 1:30:35]} O-O {[%emt 1:46:13]} 15. Qf2 {[%emt 1:46:13]} Qc7 $11 {[%emt 1:25:12]} 16. Rae1 {[%emt 1:18:53]} a5 {[%emt 1:37:54]} 17. Qh4 {[%emt 1:12:55]} Rae8 {[%emt 1:32:55]} 18. Bg5 {[%emt 1:00:09]} Nh7 {[%emt 1:30:28]} 1/2-1/2

[Event "30th NATO Chess-ch 2019"]
[Site "Berlin"]
[Date "2019.09.19"]
[Round "5.23"]
[White "Hof - Van Run, Rieke"]
[Black "Free, Graham"]
[Result "1-0"]
[ECO "B21"]
[WhiteElo "2076"]
[BlackElo "2138"]
[Annotator "ChessBase"]
[PlyCount "53"]
[EventDate "2019.09.16"]
[EventType "swiss"]
[EventCountry "GER"]
[SourceTitle "playchess.com"]
[Source "ChessBase"]
[SourceQuality "1"]
[TimeControl "40/7200:1800"]

1. e4 {[%emt 2:00:00]} c5 {[%emt 1:59:56]} 2. f4 {[%emt 1:58:39]} d5 {[%emt 1:58:39]} 3. exd5 {[%emt 1:57:48]} Nf6 {[%emt 1:56:20]} 4. Nc3 {[%emt 1:56:20]} Nxd5 {[%emt 1:49:03]} 5. Qf3 {[%emt 1:52:04]} e6 {[%emt 1:44:30]} 6. a3 {[%emt 1:46:14]} Nc6 {[%emt 1:43:12]} 7. Bb5 {[%emt 1:43:12]} a6 {[%emt 1:34:10]} 8. Bxc6+ {[%emt 1:40:01]} bxc6 {[%emt 1:39:53]} 9. Nge2 {[%emt 1:31:12]} Be7 {[%emt 1:33:19]} 10. O-O {[%emt 1:33:19]} O-O {[%emt 1:25:23]} 11. Ne4 {[%emt 1:20:30]} c4 {[%emt 1:21:41]} 12. Qh5 {[%emt 1:10:16]} Bb7 {[%emt 1:13:17]} 13. Rf3 {[%emt 1:01:48]} f5 {[%emt 0:59:22]} 14. Ng5 {[%emt 0:59:22]} Bxg5 {[%emt 0:52:16]} 15. fxg5 {[%emt 0:59:12]} g6 {[%emt 0:58:56]} 16. Qh4 {[%emt 0:51:33]} e5 {[%emt 0:51:33]} 17. Qxc4 {[%emt 0:43:26]} Qe7 {[%emt 0:41:00]} 18. d3 {[%emt 0:39:15]} f4 {[%emt 0:39:13]} 19. Nc3 {[%emt 0:34:59]} Kg7 {[%emt 0:31:19]} 20. Ne4 {[%emt 0:34:10]} Rae8 {[%emt 0:34:10]} 21. Bd2 {[%emt 0:32:48]} c5 {[%emt 0:24:16]} 22. Qxc5 {[%emt 0:30:29]} Qd7 {[%emt 0:21:29]} 23. c4 {[%emt 0:20:37]} Nb6 {[%emt 0:16:04]} 24. Nf6 {[%emt 0:14:32]} Qd4+ {[%emt 0:14:23]} 25. Qxd4 {[%emt 0:14:18]} exd4 {[%emt 0:14:16]} 26. Nxe8+ {[%emt 0:14:11]} Rxe8 {[%emt 0:14:12]} 27. Rxf4 {[%emt 0:14:04]} 1-0